[Event "*** SCC Grand Prix: Titled Tuesday Blitz"]
[Site "Chess.com"]
[Date "2020.10.13"]
[Round "6"]
[White "Meri-Arabidze"]
[Black "m_ezat"]
[Result "1/2-1/2"]
[WhiteElo "2685"]
[BlackElo "2532"]
[TimeControl "180+1"]
[EndTime "11:08:50 PDT"]
[Termination "Game drawn - insufficient material"]

1. d4 {[%clk 0:02:59.5]} 1... Nf6 {[%clk 0:02:56.1]} 2. c4 {[%clk 0:03:00.1]}
2... g6 {[%clk 0:02:56.6]} 3. Nf3 {[%clk 0:03:00.7]} 3... Bg7 {[%clk 0:02:57.1]}
4. g3 {[%clk 0:03:01.1]} 4... O-O {[%clk 0:02:57.6]} 5. Bg2 {[%clk 0:03:01.7]}
5... d6 {[%clk 0:02:58.3]} 6. O-O {[%clk 0:03:01.9]} 6... Nc6 {[%clk 0:02:58.8]}
7. Nc3 {[%clk 0:03:02.2]} 7... Bg4 {[%clk 0:02:59.3]} 8. d5 {[%clk 0:02:56.5]}
8... Bxf3 {[%clk 0:02:57.4]} 9. exf3 {[%clk 0:02:56]} 9... Na5 {[%clk
0:02:56.7]} 10. Qe2 {[%clk 0:02:55.3]} 10... c5 {[%clk 0:02:55.6]} 11. Re1
{[%clk 0:02:54.6]} 11... Re8 {[%clk 0:02:54.8]} 12. f4 {[%clk 0:02:51]} 12... e5
{[%clk 0:02:53.2]} 13. dxe6 {[%clk 0:02:42.6]} 13... Rxe6 {[%clk 0:02:52]} 14.
Be3 {[%clk 0:02:42.5]} 14... Nc6 {[%clk 0:02:40.6]} 15. Qd2 {[%clk 0:02:21.6]}
15... Ng4 {[%clk 0:02:36.4]} 16. Rad1 {[%clk 0:02:15.5]} 16... Nd4 {[%clk
0:02:32.5]} 17. Bxb7 {[%clk 0:01:56.1]} 17... Rb8 {[%clk 0:02:20.1]} 18. Bd5
{[%clk 0:01:55.8]} 18... h5 {[%clk 0:02:15.5]} 19. h3 {[%clk 0:01:28.6]} 19...
Nh6 {[%clk 0:02:13.2]} 20. Kg2 {[%clk 0:01:11.7]} 20... Re7 {[%clk 0:01:48.9]}
21. Bxd4 {[%clk 0:01:07]} 21... Bxd4 {[%clk 0:01:47.8]} 22. Nb5 {[%clk 0:01:06]}
22... Bg7 {[%clk 0:01:38]} 23. b3 {[%clk 0:01:04.5]} 23... Rxe1 {[%clk
0:01:16.1]} 24. Rxe1 {[%clk 0:01:02.5]} 24... a6 {[%clk 0:01:16.4]} 25. Na7
{[%clk 0:00:57]} 25... Qd7 {[%clk 0:01:06.1]} 26. Nc6 {[%clk 0:00:56.6]} 26...
Re8 {[%clk 0:01:06.1]} 27. Rxe8+ {[%clk 0:00:51.2]} 27... Qxe8 {[%clk
0:01:06.2]} 28. Qe3 {[%clk 0:00:48.1]} 28... Kf8 {[%clk 0:00:58]} 29. Kf3 {[%clk
0:00:33.9]} 29... Nf5 {[%clk 0:00:55.5]} 30. Qxe8+ {[%clk 0:00:32.1]} 30... Kxe8
{[%clk 0:00:55.5]} 31. Nb8 {[%clk 0:00:30.3]} 31... a5 {[%clk 0:00:52.6]} 32. g4
{[%clk 0:00:28.7]} 32... hxg4+ {[%clk 0:00:51.3]} 33. hxg4 {[%clk 0:00:29.6]}
33... Nd4+ {[%clk 0:00:51.5]} 34. Ke4 {[%clk 0:00:30.3]} 34... Nc2 {[%clk
0:00:49.8]} 35. Nc6 {[%clk 0:00:27.5]} 35... Nb4 {[%clk 0:00:45.7]} 36. Nxa5
{[%clk 0:00:25.2]} 36... Nxa2 {[%clk 0:00:45.5]} 37. g5 {[%clk 0:00:21.3]} 37...
Bd4 {[%clk 0:00:39.6]} 38. Kf3 {[%clk 0:00:19.8]} 38... Nc1 {[%clk 0:00:36.6]}
39. f5 {[%clk 0:00:18.5]} 39... gxf5 {[%clk 0:00:34.3]} 40. Kf4 {[%clk 0:00:19]}
40... Bxf2 {[%clk 0:00:28.2]} 41. Kxf5 {[%clk 0:00:19.4]} 41... Be1 {[%clk
0:00:28.3]} 42. Nb7 {[%clk 0:00:17.6]} 42... Ke7 {[%clk 0:00:23.7]} 43. Ke4
{[%clk 0:00:08.7]} 43... Nxb3 {[%clk 0:00:22.6]} 44. Kf5 {[%clk 0:00:08.6]}
44... Nd4+ {[%clk 0:00:20.4]} 45. Kg4 {[%clk 0:00:08.8]} 45... Nc2 {[%clk
0:00:19.1]} 46. Kf5 {[%clk 0:00:08.4]} 46... Bd2 {[%clk 0:00:17.2]} 47. g6
{[%clk 0:00:08]} 47... Nd4+ {[%clk 0:00:17.4]} 48. Ke4 {[%clk 0:00:06.6]} 48...
fxg6 {[%clk 0:00:18]} 49. Kd3 {[%clk 0:00:05.7]} 49... Bb4 {[%clk 0:00:17.9]}
50. Ke4 {[%clk 0:00:05.2]} 50... g5 {[%clk 0:00:17.9]} 51. Kd3 {[%clk
0:00:05.3]} 51... g4 {[%clk 0:00:17.7]} 52. Ke4 {[%clk 0:00:04.5]} 52... Bd2
{[%clk 0:00:18.3]} 53. Kd3 {[%clk 0:00:03.9]} 53... g3 {[%clk 0:00:18.4]} 54.
Kxd2 {[%clk 0:00:03.9]} 54... Kf6 {[%clk 0:00:18.1]} 55. Ke1 {[%clk 0:00:03.7]}
55... Ke5 {[%clk 0:00:18.1]} 56. Kf1 {[%clk 0:00:04.3]} 56... Nf5 {[%clk
0:00:16.4]} 57. Kg2 {[%clk 0:00:04.5]} 57... Ne3+ {[%clk 0:00:16.5]} 58. Kxg3
{[%clk 0:00:04.8]} 58... Nxd5 {[%clk 0:00:17.2]} 59. cxd5 {[%clk 0:00:05.1]}
59... c4 {[%clk 0:00:17.7]} 60. Kf3 {[%clk 0:00:05.9]} 60... Kxd5 {[%clk
0:00:16]} 61. Ke3 {[%clk 0:00:06.2]} 61... Kc6 {[%clk 0:00:16.5]} 62. Na5+
{[%clk 0:00:06]} 62... Kb5 {[%clk 0:00:16.7]} 63. Nb7 {[%clk 0:00:06.2]} 63...
Kc6 {[%clk 0:00:14.8]} 64. Nd8+ {[%clk 0:00:06.2]} 64... Kc5 {[%clk 0:00:14.4]}
65. Ne6+ {[%clk 0:00:05.1]} 65... Kb4 {[%clk 0:00:14.6]} 66. Kd2 {[%clk
0:00:04.7]} 66... d5 {[%clk 0:00:13.7]} 67. Kc2 {[%clk 0:00:04.9]} 67... Kb5
{[%clk 0:00:12.3]} 68. Kc3 {[%clk 0:00:05.4]} 68... Kc6 {[%clk 0:00:12.1]} 69.
Kd4 {[%clk 0:00:05.7]} 69... Kd6 {[%clk 0:00:12.4]} 70. Nf4 {[%clk 0:00:05.9]}
70... Kc6 {[%clk 0:00:11.9]} 71. Ne2 {[%clk 0:00:06.4]} 71... c3 {[%clk
0:00:12.6]} 72. Nxc3 {[%clk 0:00:07.3]} 72... Kd6 {[%clk 0:00:12.9]} 73. Nxd5
{[%clk 0:00:07]} 1/2-1/2

[Event "*** SCC Grand Prix: Titled Tuesday Blitz"]
[Site "Chess.com"]
[Date "2020.10.13"]
[Round "6"]
[White "karwowskikacper"]
[Black "nochewycandy"]
[Result "1/2-1/2"]
[WhiteElo "2342"]
[BlackElo "2536"]
[TimeControl "180+1"]
[EndTime "11:08:51 PDT"]
[Termination "Game drawn by repetition"]

1. g3 {[%clk 0:03:00.9]} 1... e5 {[%clk 0:02:56.2]} 2. Bg2 {[%clk 0:03:01.8]}
2... h5 {[%clk 0:02:56.4]} 3. h4 {[%clk 0:02:57]} 3... Nc6 {[%clk 0:02:55.1]} 4.
d3 {[%clk 0:02:55.2]} 4... Bc5 {[%clk 0:02:51.5]} 5. e4 {[%clk 0:02:54.6]} 5...
d6 {[%clk 0:02:49.3]} 6. Nc3 {[%clk 0:02:48.4]} 6... a6 {[%clk 0:02:48.7]} 7.
Nh3 {[%clk 0:02:36.9]} 7... Nf6 {[%clk 0:02:33.8]} 8. Bg5 {[%clk 0:02:32.6]}
8... Bg4 {[%clk 0:02:33.6]} 9. Bf3 {[%clk 0:02:25.9]} 9... Bxf3 {[%clk
0:02:24.7]} 10. Qxf3 {[%clk 0:02:26.8]} 10... Nd4 {[%clk 0:02:24.5]} 11. Qd1
{[%clk 0:02:24.1]} 11... c6 {[%clk 0:02:24.1]} 12. Na4 {[%clk 0:02:10.2]} 12...
Ba7 {[%clk 0:02:19.7]} 13. c3 {[%clk 0:02:09.3]} 13... Ne6 {[%clk 0:02:19.2]}
14. b4 {[%clk 0:02:02.1]} 14... Nxg5 {[%clk 0:02:14.6]} 15. hxg5 {[%clk
0:01:47.8]} 15... Ng4 {[%clk 0:02:11.8]} 16. Nb2 {[%clk 0:01:39.7]} 16... f6
{[%clk 0:02:05.9]} 17. f3 {[%clk 0:00:47.2]} 17... Ne3 {[%clk 0:02:03.7]} 18.
Qd2 {[%clk 0:00:47.3]} 18... fxg5 {[%clk 0:01:58.1]} 19. Nc4 {[%clk 0:00:47.4]}
19... Nxc4 {[%clk 0:01:57.4]} 20. dxc4 {[%clk 0:00:48.3]} 20... g4 {[%clk
0:01:26.2]} 21. Ng5 {[%clk 0:00:44.7]} 21... gxf3 {[%clk 0:01:11.9]} 22. Nxf3
{[%clk 0:00:45.6]} 22... Qf6 {[%clk 0:01:11.9]} 23. Nh4 {[%clk 0:00:30.5]} 23...
O-O-O {[%clk 0:01:05.9]} 24. O-O-O {[%clk 0:00:28.5]} 24... Qe6 {[%clk
0:00:55.6]} 25. Nf5 {[%clk 0:00:21.5]} 25... Kc7 {[%clk 0:00:48.4]} 26. Nxg7
{[%clk 0:00:19.6]} 26... Qxc4 {[%clk 0:00:47.7]} 27. Qd3 {[%clk 0:00:15.6]}
27... Qxa2 {[%clk 0:00:46]} 28. Rhf1 {[%clk 0:00:07.2]} 28... Kb8 {[%clk
0:00:28.6]} 29. Qb1 {[%clk 0:00:05.2]} 29... Qc4 {[%clk 0:00:25.4]} 30. Qd3
{[%clk 0:00:04.1]} 30... Qa2 {[%clk 0:00:24.7]} 31. Nf5 {[%clk 0:00:04.5]} 31...
Ka8 {[%clk 0:00:20.6]} 32. Qb1 {[%clk 0:00:04.1]} 32... Qxb1+ {[%clk 0:00:19.3]}
33. Kxb1 {[%clk 0:00:05]} 33... d5 {[%clk 0:00:19.9]} 34. Ne7 {[%clk 0:00:04.8]}
34... Rhe8 {[%clk 0:00:18.9]} 35. Ng6 {[%clk 0:00:04.2]} 35... d4 {[%clk
0:00:18.9]} 36. c4 {[%clk 0:00:03.5]} 36... Rg8 {[%clk 0:00:18.4]} 37. Nxe5
{[%clk 0:00:03.4]} 37... Rxg3 {[%clk 0:00:18.6]} 38. c5 {[%clk 0:00:03.7]} 38...
Rb3+ {[%clk 0:00:18.7]} 39. Kc2 {[%clk 0:00:04]} 39... Rxb4 {[%clk 0:00:18.2]}
40. Rf5 {[%clk 0:00:04]} 40... Bxc5 {[%clk 0:00:17.3]} 41. Nf7 {[%clk
0:00:04.3]} 41... Rf8 {[%clk 0:00:16.6]} 42. e5 {[%clk 0:00:02.9]} 42... Bb6
{[%clk 0:00:15.3]} 43. e6 {[%clk 0:00:03]} 43... Rb5 {[%clk 0:00:15.1]} 44. Rxb5
{[%clk 0:00:02.4]} 44... axb5 {[%clk 0:00:15.6]} 45. Ra1+ {[%clk 0:00:03.3]}
45... Kb8 {[%clk 0:00:15.3]} 46. Rh1 {[%clk 0:00:04.2]} 46... Re8 {[%clk
0:00:15.2]} 47. Rxh5 {[%clk 0:00:02.5]} 47... Rxe6 {[%clk 0:00:15.2]} 48. Kd3
{[%clk 0:00:03.3]} 48... Rf6 {[%clk 0:00:15.1]} 49. Ne5 {[%clk 0:00:02.9]} 49...
Rf1 {[%clk 0:00:13.8]} 50. Nd7+ {[%clk 0:00:02.6]} 50... Kc8 {[%clk 0:00:12.8]}
51. Rh7 {[%clk 0:00:03.1]} 51... Kc7 {[%clk 0:00:13.7]} 52. Ne5+ {[%clk
0:00:02.3]} 52... Kd6 {[%clk 0:00:14.1]} 53. Nf7+ {[%clk 0:00:02.3]} 53... Kc5
{[%clk 0:00:14.2]} 54. Rh5+ {[%clk 0:00:02.5]} 54... Kb4 {[%clk 0:00:15.1]} 55.
Nd6 {[%clk 0:00:02.8]} 55... Rf3+ {[%clk 0:00:15.5]} 56. Ke2 {[%clk 0:00:03]}
56... Re3+ {[%clk 0:00:16.1]} 57. Kd2 {[%clk 0:00:03.5]} 57... Bc5 {[%clk
0:00:17]} 58. Nxb7 {[%clk 0:00:04.4]} 58... Ra3 {[%clk 0:00:17.2]} 59. Nxc5
{[%clk 0:00:04.5]} 59... Ra2+ {[%clk 0:00:17.6]} 60. Kd3 {[%clk 0:00:04.9]}
60... Ra3+ {[%clk 0:00:17.5]} 61. Kxd4 {[%clk 0:00:05.3]} 61... Ra1 {[%clk
0:00:18.3]} 62. Nd3+ {[%clk 0:00:05.6]} 62... Ka4 {[%clk 0:00:18.3]} 63. Rc5
{[%clk 0:00:06.5]} 63... b4 {[%clk 0:00:16.4]} 64. Rxc6 {[%clk 0:00:06.9]} 64...
Rh1 {[%clk 0:00:15]} 65. Ra6+ {[%clk 0:00:06.6]} 65... Kb3 {[%clk 0:00:15.9]}
66. Ra8 {[%clk 0:00:07.1]} 66... Rh4+ {[%clk 0:00:15.7]} 67. Ke3 {[%clk
0:00:07.5]} 67... Rh3+ {[%clk 0:00:16]} 68. Kd2 {[%clk 0:00:07.9]} 68... Rh2+
{[%clk 0:00:15.5]} 69. Ke3 {[%clk 0:00:08.3]} 69... Rh3+ {[%clk 0:00:14.4]} 70.
Kd4 {[%clk 0:00:08.1]} 70... Rh4+ {[%clk 0:00:14.7]} 71. Ke3 {[%clk 0:00:06.8]}
71... Rh2 {[%clk 0:00:14.3]} 72. Rb8 {[%clk 0:00:06.3]} 72... Rh3+ {[%clk
0:00:14.9]} 73. Ke2 {[%clk 0:00:06.5]} 73... Rh2+ {[%clk 0:00:15.3]} 74. Ke3
{[%clk 0:00:06.7]} 74... Rh3+ {[%clk 0:00:15.5]} 75. Kd4 {[%clk 0:00:06.8]}
75... Rh4+ {[%clk 0:00:15.7]} 76. Kd5 {[%clk 0:00:07.3]} 76... Kc3 {[%clk
0:00:15.4]} 77. Nc5 {[%clk 0:00:07]} 77... Rh5+ {[%clk 0:00:14.1]} 78. Kc6
{[%clk 0:00:07.4]} 78... Rh6+ {[%clk 0:00:13.4]} 79. Kc7 {[%clk 0:00:06.5]}
79... Rh7+ {[%clk 0:00:13.6]} 80. Kd6 {[%clk 0:00:06.8]} 80... Rh6+ {[%clk
0:00:13.7]} 81. Kd5 {[%clk 0:00:06.6]} 81... Rh5+ {[%clk 0:00:14.1]} 82. Kc6
{[%clk 0:00:07]} 82... Rh6+ {[%clk 0:00:14.4]} 83. Kc7 {[%clk 0:00:07.4]} 83...
Rh7+ {[%clk 0:00:14.5]} 84. Kd6 {[%clk 0:00:07.5]} 84... Rh6+ {[%clk 0:00:14.4]}
85. Kd5 {[%clk 0:00:06.9]} 85... Rh5+ {[%clk 0:00:14.5]} 1/2-1/2

[Event "*** SCC Grand Prix: Titled Tuesday Blitz"]
[Site "Chess.com"]
[Date "2020.10.13"]
[Round "6"]
[White "Alexander_Zubov"]
[Black "sjam6687"]
[Result "1-0"]
[WhiteElo "2910"]
[BlackElo "2561"]
[TimeControl "180+1"]
[EndTime "11:08:53 PDT"]
[Termination "Alexander_Zubov won on time"]

1. d4 {[%clk 0:03:00.9]} 1... d5 {[%clk 0:02:59.7]} 2. Nf3 {[%clk 0:03:00.1]}
2... Nf6 {[%clk 0:02:59]} 3. c4 {[%clk 0:02:59.6]} 3... c6 {[%clk 0:02:58.7]} 4.
Qb3 {[%clk 0:02:58.1]} 4... dxc4 {[%clk 0:02:56.5]} 5. Qxc4 {[%clk 0:02:57.7]}
5... Bf5 {[%clk 0:02:56.5]} 6. g3 {[%clk 0:02:56.9]} 6... e6 {[%clk 0:02:56.2]}
7. Bg2 {[%clk 0:02:56.9]} 7... Be7 {[%clk 0:02:56.3]} 8. O-O {[%clk 0:02:56.5]}
8... O-O {[%clk 0:02:56.7]} 9. Nc3 {[%clk 0:02:56.2]} 9... Nbd7 {[%clk
0:02:55.8]} 10. Qb3 {[%clk 0:02:56]} 10... Qb6 {[%clk 0:02:53.7]} 11. Nd2 {[%clk
0:02:55.1]} 11... h6 {[%clk 0:02:45]} 12. Nc4 {[%clk 0:02:53.1]} 12... Qxb3
{[%clk 0:02:41]} 13. axb3 {[%clk 0:02:52.1]} 13... a6 {[%clk 0:02:41.5]} 14. Na5
{[%clk 0:02:47.5]} 14... Ra7 {[%clk 0:02:40.8]} 15. Bxc6 {[%clk 0:02:20.4]}
15... b6 {[%clk 0:02:24.8]} 16. Nc4 {[%clk 0:02:11.6]} 16... Rc8 {[%clk
0:02:20.5]} 17. Bg2 {[%clk 0:01:42.2]} 17... Bc2 {[%clk 0:02:04.7]} 18. Nd2
{[%clk 0:00:59.3]} 18... Rcc7 {[%clk 0:01:34.5]} 19. e4 {[%clk 0:00:44.6]} 19...
Bb4 {[%clk 0:01:29.4]} 20. e5 {[%clk 0:00:42.4]} 20... Ne8 {[%clk 0:01:25.2]}
21. Re1 {[%clk 0:00:27.2]} 21... Bxc3 {[%clk 0:01:21.8]} 22. bxc3 {[%clk
0:00:27.1]} 22... Rxc3 {[%clk 0:01:22.7]} 23. Re3 {[%clk 0:00:24.1]} 23... Rxe3
{[%clk 0:01:19.4]} 24. fxe3 {[%clk 0:00:25]} 24... Nc7 {[%clk 0:01:15.9]} 25.
Kf2 {[%clk 0:00:22.4]} 25... Nb5 {[%clk 0:01:12.2]} 26. Bc6 {[%clk 0:00:21.7]}
26... Bd3 {[%clk 0:01:08.1]} 27. Nc4 {[%clk 0:00:19.1]} 27... Nc3 {[%clk
0:01:04.5]} 28. Bb2 {[%clk 0:00:17.4]} 28... Ne4+ {[%clk 0:01:02.2]} 29. Ke1
{[%clk 0:00:17.4]} 29... Nf8 {[%clk 0:00:56.7]} 30. Nd6 {[%clk 0:00:16.4]} 30...
f5 {[%clk 0:00:49.1]} 31. Rd1 {[%clk 0:00:12.7]} 31... Bc2 {[%clk 0:00:46.2]}
32. Rc1 {[%clk 0:00:13]} 32... Bd3 {[%clk 0:00:43.7]} 33. Nxe4 {[%clk
0:00:12.2]} 33... Bxe4 {[%clk 0:00:41.7]} 34. Bxe4 {[%clk 0:00:10.9]} 34... fxe4
{[%clk 0:00:42.5]} 35. Rc6 {[%clk 0:00:11.4]} 35... b5 {[%clk 0:00:39.6]} 36.
Ba3 {[%clk 0:00:10.2]} 36... a5 {[%clk 0:00:38.3]} 37. Bc5 {[%clk 0:00:10.1]}
37... Ra8 {[%clk 0:00:36.5]} 38. Kd2 {[%clk 0:00:10.5]} 38... Nd7 {[%clk
0:00:34.3]} 39. Ba3 {[%clk 0:00:07]} 39... b4 {[%clk 0:00:31.9]} 40. Bb2 {[%clk
0:00:07.1]} 40... a4 {[%clk 0:00:29.8]} 41. bxa4 {[%clk 0:00:06.7]} 41... Nf8
{[%clk 0:00:27.3]} 42. Kc2 {[%clk 0:00:06.1]} 42... Rxa4 {[%clk 0:00:25.5]} 43.
Kb3 {[%clk 0:00:06]} 43... Ra7 {[%clk 0:00:24.3]} 44. Kxb4 {[%clk 0:00:06.4]}
44... Kf7 {[%clk 0:00:24.7]} 45. Bc3 {[%clk 0:00:06.2]} 45... Rb7+ {[%clk
0:00:23.1]} 46. Kc4 {[%clk 0:00:06.3]} 46... Nd7 {[%clk 0:00:23.4]} 47. Ba5
{[%clk 0:00:06.7]} 47... Rb8 {[%clk 0:00:20.8]} 48. Bc7 {[%clk 0:00:06.6]} 48...
Rb1 {[%clk 0:00:16.2]} 49. d5 {[%clk 0:00:07]} 49... Nf8 {[%clk 0:00:12.6]} 50.
Bd6 {[%clk 0:00:03.5]} 50... Nd7 {[%clk 0:00:10.6]} 51. Rc7 {[%clk 0:00:03]}
51... Rc1+ {[%clk 0:00:08.5]} 52. Kd4 {[%clk 0:00:03]} 52... Rd1+ {[%clk
0:00:07.4]} 53. Kxe4 {[%clk 0:00:03.1]} 53... exd5+ {[%clk 0:00:07.4]} 54. Kf3
{[%clk 0:00:03.4]} 54... Ke6 {[%clk 0:00:06.9]} 55. Ke2 {[%clk 0:00:03.9]} 55...
Rb1 {[%clk 0:00:06.1]} 56. h4 {[%clk 0:00:04.1]} 56... g5 {[%clk 0:00:06.5]} 57.
h5 {[%clk 0:00:04]} 57... Nxe5 {[%clk 0:00:06.3]} 58. Bxe5 {[%clk 0:00:04]}
58... Kxe5 {[%clk 0:00:07.2]} 59. Re7+ {[%clk 0:00:04.6]} 59... Kf5 {[%clk
0:00:06.7]} 60. Rh7 {[%clk 0:00:05.1]} 60... Kg4 {[%clk 0:00:05.1]} 61. Rxh6
{[%clk 0:00:05.1]} 61... Kxg3 {[%clk 0:00:05.6]} 62. Rh8 {[%clk 0:00:05.3]}
62... Rh1 {[%clk 0:00:04.2]} 63. h6 {[%clk 0:00:05.5]} 63... Kg4 {[%clk
0:00:04.4]} 64. h7 {[%clk 0:00:04.7]} 64... Rh6 {[%clk 0:00:04.4]} 65. Kd3
{[%clk 0:00:04.6]} 65... Re6 {[%clk 0:00:02.3]} 66. Rg8 {[%clk 0:00:03.2]} 1-0

[Event "*** SCC Grand Prix: Titled Tuesday Blitz"]
[Site "Chess.com"]
[Date "2020.10.13"]
[Round "6"]
[White "Orest_Vovk"]
[Black "Gusarov91"]
[Result "0-1"]
[WhiteElo "2407"]
[BlackElo "2579"]
[TimeControl "180+1"]
[EndTime "11:09:02 PDT"]
[Termination "Gusarov91 won by checkmate"]

1. d4 {[%clk 0:03:00.9]} 1... Nf6 {[%clk 0:02:58.7]} 2. Bf4 {[%clk 0:03:00.7]}
2... d6 {[%clk 0:02:58]} 3. e3 {[%clk 0:03:01.1]} 3... g6 {[%clk 0:02:57.6]} 4.
h3 {[%clk 0:03:01.4]} 4... Bg7 {[%clk 0:02:57.5]} 5. Nf3 {[%clk 0:03:00.9]} 5...
c5 {[%clk 0:02:57.4]} 6. c3 {[%clk 0:03:00.5]} 6... Qb6 {[%clk 0:02:55.8]} 7.
Qb3 {[%clk 0:02:58.5]} 7... Nc6 {[%clk 0:02:54.9]} 8. Qxb6 {[%clk 0:02:57.9]}
8... axb6 {[%clk 0:02:55]} 9. Na3 {[%clk 0:02:56.2]} 9... Nd5 {[%clk 0:02:49]}
10. Bg3 {[%clk 0:02:50.3]} 10... Nxc3 {[%clk 0:02:40.7]} 11. bxc3 {[%clk
0:02:47.7]} 11... Rxa3 {[%clk 0:02:40.2]} 12. Kd2 {[%clk 0:02:46]} 12... Be6
{[%clk 0:02:36.3]} 13. Bd3 {[%clk 0:02:35.7]} 13... O-O {[%clk 0:02:33.9]} 14.
Rhb1 {[%clk 0:02:32.7]} 14... Rfa8 {[%clk 0:02:25.5]} 15. Rxb6 {[%clk
0:02:32.4]} 15... Rxa2+ {[%clk 0:02:26]} 16. Rxa2 {[%clk 0:02:32.9]} 16... Rxa2+
{[%clk 0:02:26.7]} 17. Kc1 {[%clk 0:02:26.7]} 17... Na5 {[%clk 0:02:16.1]} 18.
Nd2 {[%clk 0:02:13.3]} 18... cxd4 {[%clk 0:02:11.1]} 19. cxd4 {[%clk 0:02:06.3]}
19... Ra3 {[%clk 0:02:04.4]} 20. Bc2 {[%clk 0:01:33.8]} 20... Rc3 {[%clk
0:01:50.1]} 21. Kb2 {[%clk 0:01:26.6]} 21... Rc7 {[%clk 0:01:46.5]} 22. Be4
{[%clk 0:01:18.9]} 22... f5 {[%clk 0:01:38.7]} 23. Bf3 {[%clk 0:01:13.8]} 23...
g5 {[%clk 0:01:34.9]} 24. Rb5 {[%clk 0:01:07]} 24... Nc6 {[%clk 0:01:25.4]} 25.
Kb1 {[%clk 0:00:53.5]} 25... Bd7 {[%clk 0:01:21.3]} 26. Bd5+ {[%clk 0:00:49.8]}
26... Kf8 {[%clk 0:01:21.3]} 27. Rb6 {[%clk 0:00:47.9]} 27... Bf6 {[%clk
0:01:19.5]} 28. f3 {[%clk 0:00:41.7]} 28... Kg7 {[%clk 0:01:16]} 29. Bh2 {[%clk
0:00:38.3]} 29... f4 {[%clk 0:01:13.2]} 30. exf4 {[%clk 0:00:35.7]} 30... Bxd4
{[%clk 0:01:13.3]} 31. Rb3 {[%clk 0:00:31]} 31... gxf4 {[%clk 0:01:10.3]} 32.
Bxf4 {[%clk 0:00:31.9]} 32... e5 {[%clk 0:01:09.8]} 33. Bg5 {[%clk 0:00:27.3]}
33... Bf5+ {[%clk 0:01:09.2]} 34. Be4 {[%clk 0:00:25.7]} 34... Be6 {[%clk
0:01:08.5]} 35. Rb5 {[%clk 0:00:21.1]} 35... h6 {[%clk 0:01:05.8]} 36. Bh4
{[%clk 0:00:19.2]} 36... Be3 {[%clk 0:01:02.9]} 37. Nf1 {[%clk 0:00:14.4]} 37...
Bc5 {[%clk 0:01:03]} 38. Ng3 {[%clk 0:00:14.1]} 38... Nd4 {[%clk 0:01:03.3]} 39.
Rxb7 {[%clk 0:00:11.9]} 39... Rxb7+ {[%clk 0:01:03.8]} 40. Bxb7 {[%clk
0:00:12.8]} 40... d5 {[%clk 0:01:00.7]} 41. Nh5+ {[%clk 0:00:12.1]} 41... Kf7
{[%clk 0:01:00.7]} 42. g4 {[%clk 0:00:12]} 42... Nxf3 {[%clk 0:00:59.6]} 43. Bg3
{[%clk 0:00:12.3]} 43... e4 {[%clk 0:00:58.8]} 44. Nf4 {[%clk 0:00:11.4]} 44...
d4 {[%clk 0:00:50.2]} 45. Kc1 {[%clk 0:00:07.4]} 45... Ba3+ {[%clk 0:00:48.4]}
46. Kd1 {[%clk 0:00:06.5]} 46... Bb3+ {[%clk 0:00:48.4]} 47. Ke2 {[%clk
0:00:06.6]} 47... d3+ {[%clk 0:00:46.1]} 48. Nxd3 {[%clk 0:00:05.9]} 48... exd3+
{[%clk 0:00:44.3]} 49. Kxd3 {[%clk 0:00:05.7]} 49... Ng5 {[%clk 0:00:41.4]} 50.
h4 {[%clk 0:00:05.9]} 50... Ne6 {[%clk 0:00:41]} 51. g5 {[%clk 0:00:05.9]} 51...
hxg5 {[%clk 0:00:40.1]} 52. hxg5 {[%clk 0:00:06.8]} 52... Nxg5 {[%clk
0:00:36.9]} 53. Bf4 {[%clk 0:00:07]} 53... Ne6 {[%clk 0:00:36.8]} 54. Bh2 {[%clk
0:00:06.6]} 54... Bd1 {[%clk 0:00:36.7]} 55. Kd2 {[%clk 0:00:06.5]} 55... Bg4
{[%clk 0:00:36.6]} 56. Bd5 {[%clk 0:00:06.4]} 56... Ke7 {[%clk 0:00:36.5]} 57.
Bxe6 {[%clk 0:00:06.5]} 57... Kxe6 {[%clk 0:00:36.6]} 58. Ke3 {[%clk 0:00:06.9]}
58... Bc1+ {[%clk 0:00:35.3]} 59. Kd3 {[%clk 0:00:06.8]} 59... Bf5+ {[%clk
0:00:35.2]} 60. Kd4 {[%clk 0:00:06.9]} 60... Bb2+ {[%clk 0:00:35.4]} 61. Ke3
{[%clk 0:00:06]} 61... Kd5 {[%clk 0:00:35.2]} 62. Kf4 {[%clk 0:00:06.2]} 62...
Bd7 {[%clk 0:00:35]} 63. Ke3 {[%clk 0:00:06.2]} 63... Bc1+ {[%clk 0:00:35.2]}
64. Ke2 {[%clk 0:00:05.9]} 64... Ke4 {[%clk 0:00:35.3]} 65. Kd1 {[%clk 0:00:06]}
65... Be3 {[%clk 0:00:35]} 66. Kc2 {[%clk 0:00:05.7]} 66... Kd4 {[%clk
0:00:34.5]} 67. Bb8 {[%clk 0:00:04.6]} 67... Ba4+ {[%clk 0:00:34.2]} 68. Kb2
{[%clk 0:00:04.5]} 68... Bd2 {[%clk 0:00:33]} 69. Ba7+ {[%clk 0:00:03.8]} 69...
Kc4 {[%clk 0:00:33.4]} 70. Bb8 {[%clk 0:00:04.3]} 70... Bc3+ {[%clk 0:00:32.9]}
71. Ka3 {[%clk 0:00:04.8]} 71... Bb3 {[%clk 0:00:32.4]} 72. Bd6 {[%clk
0:00:04.7]} 72... Bd2 {[%clk 0:00:29.2]} 73. Kb2 {[%clk 0:00:03.1]} 73... Bh6
{[%clk 0:00:27.9]} 74. Be7 {[%clk 0:00:03.1]} 74... Bg7+ {[%clk 0:00:27.4]} 75.
Ka3 {[%clk 0:00:03.8]} 75... Bd4 {[%clk 0:00:24.7]} 76. Bg5 {[%clk 0:00:03.9]}
76... Kc3 {[%clk 0:00:22.6]} 77. Be7 {[%clk 0:00:03.2]} 77... Kc2 {[%clk
0:00:20.9]} 78. Bf8 {[%clk 0:00:01.6]} 78... Bc3 {[%clk 0:00:20.5]} 79. Be7
{[%clk 0:00:01.6]} 79... Be5 {[%clk 0:00:20.4]} 80. Bf8 {[%clk 0:00:02.5]} 80...
Kc3 {[%clk 0:00:20.8]} 81. Be7 {[%clk 0:00:02.9]} 81... Kc4 {[%clk 0:00:21.4]}
82. Bf8 {[%clk 0:00:02.7]} 82... Bf6 {[%clk 0:00:21.9]} 83. Bd6 {[%clk
0:00:02.6]} 83... Bg5 {[%clk 0:00:22.5]} 84. Bf8 {[%clk 0:00:03.1]} 84... Bc1#
{[%clk 0:00:22.6]} 0-1